Cogmind - Beta 9.6 @@@ ROGUE MODE // 2020.05.19 @ 20:46:05 Player: TravelDemon Result: Destroyed by P-70 Sage with Tesla Rifle Performance ------------- Evolutions (5) 2500 Regions Visited (11) 2200 Robots Destroyed (202) 1010 Value Destroyed (6693) 6693 Prototype IDs (13) 260 Alien Tech Used (0) 0 Bonus (474) 474 TOTAL SCORE: 13137 Bonus ------- High Alert Combat Kills 329 Follower Combat Kills 145 Cogmind --------- Core Integrity 0/1000 Matter 253/300 Energy 95/100 System Corruption 24% Temperature Cool (0) Movement Core (50) Location -5/Factory Parts ------- > --- POWER (1) -------- (None) > --- PROPULSION (5) --- (None) > --- UTILITY (8) ------ Advanced Terrain Scan Processor Improved Melee Analysis Suite Improved Target Analyzer > --- WEAPON (3) ------- (None) > --- INVENTORY (4) ---- Advanced Sensor Array Advanced Terrain Scanner Improved Melee Analysis Suite Improved Thermal Shield Peak State ------------ > --- POWER ------------ F-cell Engine > --- PROPULSION ------- Medium Treads Heavy Treads Carbon-fiber Leg Wheel > --- UTILITY ---------- Large Storage Unit High-capacity Storage Unit Improved Melee Analysis Suite Improved Melee Analysis Suite Improved Utility Shielding Heavy Reflective Plating Force Field > --- WEAPON ----------- Falx Spear Spear > --- INVENTORY -------- Improved Deuterium Engine Large Storage Unit Advanced Terrain Scanner Advanced Terrain Scan Processor Improved Melee Analysis Suite Improved Target Analyzer Improved Core Analyzer Layered Medium Armor Plating Focal Shield Improved Thermal Shield Precision Grenade Launcher Precision Grenade Launcher Spear Spear [Rating: 73] Favorites ----------- Power Light Ion Engine Engine Light Ion Engine Power Core Light Nuclear Core Reactor Light Quantum Reactor Propulsion Light Treads Treads Light Treads Leg Aluminum Leg Wheel Wheel Hover Unit Gravmag System Flight Unit Cesium-ion Thruster Utility High-capacity Storage Unit Device Force Field Storage High-capacity Storage Unit Processor Improved Melee Analysis Suite Hackware Hacking Suite Protection Hardened Medium Armor Plating Weapon Spear Energy Gun EM Pulse Gun Energy Cannon Advanced Beam Cannon Ballistic Gun Minigun Launcher Grenade Launcher Impact Weapon Heavy Hammer Slashing Weapon Chainsword Piercing Weapon Spear Build | -11 -10 -9 -9 -8 -7 -7 -7 -6 -5 -5 -5 ------- Run | Scr Mat Mat Min Mat Fac Low Low Fac Fac Was Fac Slots Evolved 10 | . . 2 . 2 2 . . 2 2 . . Power . | . . . . . . . . . . . . Propulsion 3 | . . 1 . 1 1 . . . . . . Utility 6 | . . 1 . 1 1 . . 2 1 . . Weapon 1 | . . . . . . . . . 1 . . Parts Attached 179 | 6 11 17 4 20 36 10 2 26 13 1 33 Power 12 | 1 . 1 . 2 1 2 . 1 . 1 3 Engine 10 | 1 . 1 . 2 . 2 . 1 . . 3 Core 1 | . . . . . 1 . . . . . . Reactor 1 | . . . . . . . . . . 1 . Propulsion 76 | 2 1 5 . 7 21 6 . 11 5 . 18 Treads 37 | . 1 5 . 7 17 3 . 1 2 . 1 Leg 12 | 2 . . . . . 1 . 2 3 . 4 Wheel 9 | . . . . . . . . 4 . . 5 Hover 6 | . . . . . 4 . . 2 . . . Flight 12 | . . . . . . 2 . 2 . . 8 Utility 43 | 1 2 3 1 4 7 1 1 13 3 . 7 Device 5 | . . . . . . . . 2 1 . 2 Storage 4 | 1 2 . . . . . . 1 . . . Processor 10 | . . . . 1 2 . . 5 . . 2 Hackware 3 | . . . . . 3 . . . . . . Protection 21 | . . 3 1 3 2 1 1 5 2 . 3 Artifact . | . . . . . . . . . . . . Weapon 48 | 2 8 8 3 7 7 1 1 1 5 . 5 Energy Gun 15 | 1 4 6 2 1 1 . . . . . . Energy Cannon 3 | . . 1 . 2 . . . . . . . Ballistic Gun 3 | 1 . . . 1 1 . . . . . . Ballistic Cannon . | . . . . . . . . . . . . Launcher 11 | . 2 . 1 2 2 1 . . 2 . 1 Special Weapon . | . . . . . . . . . . . . Impact Weapon 5 | . 2 1 . 1 1 . . . . . . Slashing Weapon 4 | . . . . . 1 . . 1 2 . . Piercing Weapon 7 | . . . . . 1 . 1 . 1 . 4 Special Melee Weapon . | . . . . . . . . . . . . Unidentified Prototypes 7 | . . 1 . 3 1 1 . 1 . . . Parts Lost 77 | . 2 3 1 3 8 7 4 14 5 3 27 Power 8 | . . 1 . 1 1 1 1 . . . 3 Propulsion 44 | . 1 1 . 1 7 5 2 8 3 1 15 Utility 17 | . . . . 1 . 1 1 5 2 2 5 Weapon 8 | . 1 1 1 . . . . 1 . . 4 Highest Loss Streak 11 | . 1 1 1 1 8 6 4 6 1 2 11 Average Slot Usage (%) 91 | . 97 95 99 99 96 94 70 83 86 70 62 Engine 6 | . 14 9 11 9 5 4 1 5 5 1 2 Treads 19 | . 2 32 33 35 33 16 8 4 5 2 1 Leg 5 | . 25 . . . . 3 7 6 2 16 6 Wheel 2 | . . . . . . . . 8 14 . 4 Hover 1 | . . . . . 2 5 . 1 . . . Flight 1 | . . . . . . 6 . . . . 5 Storage 16 | . 27 22 22 18 15 15 15 13 11 8 3 Processor 5 | . . . . . . 7 7 12 11 11 20 Hackware 4 | . . . . . 16 7 7 1 . . . Protection 7 | . . 8 11 17 4 6 5 11 9 5 5 Energy Gun 4 | . 15 12 9 5 1 . . . . . . Energy Cannon 1 | . . 4 11 6 . . . . . . . Ballistic Gun 1 | . 2 . . 5 2 . . . . . . Launcher 1 | . 5 1 . 1 . . . . . 4 . Slashing Weapon 3 | . . . . . 3 7 7 5 9 4 . Piercing Weapon 3 | . . . . . 5 6 6 6 5 5 5 Naked Turns . | . . . . . . . . . . . . Heaviest Build 96 | 9 73 76 78 90 89 91 91 96 93 84 52 Greatest Support 110 | 20 20 60 60 82 110 68 48 52 98 50 36 Greatest Overweight (x) 30 | 2 3 3 1 1 3 4 3 30 9 1 2 Average Overweight (x) 1 | . 2 1 1 . . 1 1 1 1 . . Largest Inventory Capacity 26 | 6 20 20 20 20 20 20 20 26 18 18 10 Average Capacity 18 | 5 19 20 20 20 20 20 20 18 18 13 8 Most Carried 20 | 6 20 20 20 20 20 20 18 20 18 14 10 Average Carried 17 | 4 17 19 19 19 19 18 17 17 15 11 6 Final Capacity 20 | 6 20 20 20 20 20 20 20 18 18 10 4 Final Carried 20 | 6 20 20 19 20 20 18 17 18 13 10 4 Class Distribution -------------------- 46% | Hauler-Mutant 29% | Scavenger-Mutant 16% | Hacker-Mutant 7% | Mutant Dominant Class ---------------- Hauler-Mutant | -10/Materials Hauler-Mutant | -9/Materials Hauler-Mutant | -9/Mines Scavenger-Mutant | -8/Materials Hacker-Mutant | -7/Factory Hauler-Mutant | -7/Lower Caves Hauler-Mutant | -7/Lower Caves Scavenger-Mutant | -6/Factory Scavenger-Mutant | -5/Factory Scavenger-Mutant | -5/Waste Mutant | -5/Factory Resources | -11 -10 -9 -9 -8 -7 -7 -7 -6 -5 -5 -5 ----------- Run | Scr Mat Mat Min Mat Fac Low Low Fac Fac Was Fac Matter Collected 2580 | 272 134 226 34 471 504 182 23 237 230 . 267 Remotely . | . . . . . . . . . . . . Salvage Created 8008 | 164 470 1100 277 954 1213 357 95 1175 1476 . 727 Parts 437 | 13 39 56 16 70 72 11 . 55 64 . 41 Haulers Intercepted 13 | . 2 3 . 3 2 . . 1 1 . 1 Recyclers Shooed 5 | . . 1 1 . . . . 2 1 . . Parts Field Recycled . | . . . . . . . . . . . . Retrieved Matter . | . . . . . . . . . . . . Parts Self-Destructed 21 | . . . . . . 21 . . . . . Prevented . | . . . . . . . . . . . . Kills | -11 -10 -9 -9 -8 -7 -7 -7 -6 -5 -5 -5 ------- Run | Scr Mat Mat Min Mat Fac Low Low Fac Fac Was Fac Combat Hostiles Destroyed 144 | . 14 19 5 23 24 5 3 13 24 . 14 Melee 65 | . . . . . 17 3 2 13 18 . 12 Guns 30 | . 4 11 . 11 4 . . . . . . Cannons 16 | . . 6 2 8 . . . . . . . AOE 32 | . 10 1 3 4 3 2 1 . 6 . 2 Classes Destroyed 15 | 3 5 3 . 2 1 . . . 1 . . Worker 13 | 2 2 . 2 . 1 . . 2 3 . 1 Builder 7 | . 2 1 . 2 . . . . 1 . 1 Tunneler 6 | 4 1 . 1 . . . . . . . . Hauler 13 | . 2 3 . 3 2 . . 1 1 . 1 Recycler 7 | 1 . . 1 1 . . . 3 1 . . Mechanic 1 | . . . . . . . . . 1 . . Operator 4 | . . 2 . 1 1 . . . . . . Watcher 7 | . 3 . . 1 2 . . 1 . . . Swarmer 40 | . 9 2 . 9 8 3 . 4 . . 5 Grunt 58 | . 5 11 5 7 8 . 2 3 13 . 4 Brawler 1 | . . 1 . . . . . . . . . Duelist 5 | . . . . 1 1 . . 1 2 . . Sentry 18 | . . 5 . 5 4 1 1 1 1 . . Hunter 5 | . . . . 1 . . . 1 . . 3 Programmer 17 | . . . . . 3 1 . 3 8 . 2 Best Kill Streak 8 | 7 5 5 3 7 6 3 1 4 8 . 5 Combat Bots Only 6 | . 3 5 3 6 5 3 1 3 5 . 5 Max Kills in Single Turn 4 | 1 3 3 3 3 4 1 1 1 3 . 3 Gunslinging 1 | . . 1 . . . . . . . . . Exploded 3 | . 2 1 3 2 3 1 1 . 3 . 2 Melee 1 | . . . . . 1 1 1 1 1 . 1 Uniques/NPCs Destroyed . | . . . . . . . . . . . . Combat | -11 -10 -9 -9 -8 -7 -7 -7 -6 -5 -5 -5 -------- Run | Scr Mat Mat Min Mat Fac Low Low Fac Fac Was Fac Damage Taken 11878 | . 420 712 155 1007 2063 627 374 1643 1476 88 3313 Core 1828 | . 28 68 11 90 215 82 68 256 169 . 841 Absorbed by Shields 841 | . . . . . . . . 124 717 . . Core Remaining (%) 77 | 100 88 . 80 83 . . 47 69 . . . Volleys Fired 243 | 12 46 52 23 76 22 3 2 . 6 . 1 Largest 2 | 2 2 2 2 2 2 1 1 . 1 . 1 Hottest 118 | 60 90 108 108 108 118 36 36 . 36 . 36 Shots Fired 419 | 24 72 103 40 127 41 3 2 . 6 . 1 Gun 304 | 24 64 86 17 73 40 . . . . . . Cannon 79 | . . 17 18 44 . . . . . . . Launcher 36 | . 8 . 5 10 1 3 2 . 6 . 1 Special . | . . . . . . . . . . . . Kinetic 86 | 12 15 . . 44 15 . . . . . . Thermal 148 | 12 14 28 18 51 25 . . . . . . Explosive 36 | . 8 . 5 10 1 3 2 . 6 . 1 Electromagnetic 149 | . 35 75 17 22 . . . . . . . Robot Hit Streak 23 | 7 5 23 8 14 15 . 2 . 7 . . Robot Miss Streak 4 | 3 4 3 3 2 2 1 . . . . . Penetration Max . | . . . . . . . . . . . . Secondary Targets 3 | . 1 2 . . . . . . . . . Max Gunslinging Chain 1 | . 1 1 . . . . . . . . . Shots Hit Robots 516 | 12 34 76 25 87 88 14 8 59 80 . 33 Core Hits 309 | 9 33 32 12 52 41 12 7 25 55 . 31 Critical Hits 21 | . . 3 1 5 2 . . . 5 . 5 Critical Kills 13 | . . 3 1 1 . . . . 3 . 5 Critical Parts Destroyed 8 | . . . . 4 2 . . . 2 . . Melee Attacks 313 | . 6 2 . 6 69 23 7 69 90 . 41 Impact 16 | . 6 2 . 6 2 . . . . . . Slashing 94 | . . . . . 13 4 1 10 66 . . Piercing 203 | . . . . . 54 19 6 59 24 . 41 Sneak Attacks 26 | . . 1 . . 3 . . 13 6 . 3 Combat Hostiles 2 | . . . . . 1 . . . 1 . . Follow-up Attacks 41 | . . . . . 9 1 . 6 23 . 2 Damage Inflicted 19771 | 111 1084 1193 824 2298 2587 1032 315 2739 5211 . 2377 Guns 2804 | 111 308 716 166 820 683 . . . . . . Cannons 1131 | . . 306 251 574 . . . . . . . Explosions 5528 | . 776 101 402 853 210 249 141 . 1643 . 1153 Melee 10233 | . . 70 . . 1694 783 174 2739 3568 . 1205 Ramming 75 | . . . 5 51 . . . . . . 19 Kinetic 909 | 26 44 . . 554 285 . . . . . . Thermal 4017 | 85 284 519 251 687 398 . . . 763 . 1030 Explosive 3409 | . 551 . 402 853 210 249 141 . 880 . 123 Electromagnetic 1128 | . 205 604 166 153 . . . . . . . Impact 70 | . . 70 . . . . . . . . . Slashing 3784 | . . . . . 271 35 . 453 3025 . . Piercing 6379 | . . . . . 1423 748 174 2286 543 . 1205 Highest Corruption 24 | . . . . 1 4 6 6 3 10 20 24 Average Corruption 6 | . . . . 1 3 5 6 1 7 18 20 Corruption Purged . | . . . . . . . . . . . . Effects 174 | . . . . 2 35 47 5 4 19 3 59 Message Errors 32 | . . . . 1 6 14 2 . 2 . 7 Matter Fused 40 | . . . . . 11 12 . . 4 1 12 Heat Flow Errors 16 | . . . . . 2 7 1 . 3 . 3 Energy Discharges 20 | . . . . . 7 5 1 1 2 . 4 Parts Rejected 5 | . . . . . 1 . . . 1 1 2 Data Loss (minor) 22 | . . . . 1 6 7 . 2 2 . 4 Data Loss (major) 5 | . . . . . . 1 1 . . 1 2 Alerts 1 | . . . . . . . . . . . 1 Misdirections 21 | . . . . . . . . . 1 . 20 Targeting Errors 12 | . . . . . 2 1 . 1 4 . 4 Overload Shots . | . . . . . . . . . . . . Overflow Damage 1583 | . 15 60 18 21 29 20 4 586 409 . 421 Projectiles 1 | . . . . 1 . . . . . . . Explosions 625 | . 15 . 18 20 . 1 . . 203 . 368 Melee 957 | . . 60 . . 29 19 4 586 206 . 53 Knockbacks 1 | . . 1 . . . . . . . . . Impact 1 | . . 1 . . . . . . . . . Kinetic . | . . . . . . . . . . . . Secondary . | . . . . . . . . . . . . Self-Inflicted Damage 440 | . 92 . 26 19 . . . . 90 . 213 Shots 11 | . 3 . 1 1 . . . . 3 . 3 Rammed 9 | . . . 1 5 . . . . . . 3 Targets Rammed 9 | . . . 1 5 . . . . . . 3 Kicked . | . . . . . . . . . . . . Crushed . | . . . . . . . . . . . . Highest Temperature 466 | 40 120 466 192 446 258 263 113 . 218 . 268 Average Temperature 91 | 19 32 110 56 118 80 113 41 . 92 . 114 Received Heat Transfer 2218 | . 42 312 75 279 489 144 120 234 211 . 312 Effects 15 | . . 6 . 8 1 . . . . . . Shutdowns 5 | . . 2 . 3 . . . . . . . Energy Bleed 6 | . . 3 . 3 . . . . . . . Interference 3 | . . . . 2 1 . . . . . . Damage (minor) 1 | . . 1 . . . . . . . . . Siege Activations . | . . . . . . . . . . . . Robots Corrupted . | . . . . . . . . . . . . Combat Hostiles . | . . . . . . . . . . . . Parts Fried 2 | . . 2 . . . . . . . . . Impact Corruptions 2 | . . 2 . . . . . . . . . Robots Melted 1 | . . 1 . . . . . . . . . Combat Hostiles 1 | . . 1 . . . . . . . . . Parts Melted 7 | . . 3 1 1 2 . . . . . . Heat Transferred 5068 | 200 275 951 444 1258 740 . . . 500 . 700 Parts Sabotaged 2 | . . . . . . . . . 2 . . Parts Stolen . | . . . . . . . . . . . . Parts Stripped . | . . . . . . . . . . . . Power Chain Reactions 3 | . 2 1 . . . . . . . . . Missiles Intercepted . | . . . . . . . . . . . . Alert | -11 -10 -9 -9 -8 -7 -7 -7 -6 -5 -5 -5 ------- Run | Scr Mat Mat Min Mat Fac Low Low Fac Fac Was Fac Peak Influence 758 | 35 226 356 156 443 758 . . 160 750 277 405 Average Influence 201 | 10 85 179 88 246 280 . . 59 383 263 278 Maximum Alert Level 3 | . 1 1 . 2 3 . . . 3 1 2 Low Security (%) 56 | 100 92 67 100 36 28 . . 100 21 . 30 Level 1 33 | . 7 32 . 47 60 . . . 23 100 65 Level 2 7 | . . . . 16 6 . . . 45 . 4 Level 3 1 | . . . . . 4 . . . 9 . . Level 4 . | . . . . . . . . . . . . Level 5 . | . . . . . . . . . . . . High Security . | . . . . . . . . . . . . Max Security . | . . . . . . . . . . . . Squads Dispatched 26 | . 1 3 1 1 7 . . 4 4 . 5 Investigation 3 | . 1 1 . . . . . 1 . . . Extermination 7 | . . . . . 2 . . 2 2 . 1 Reinforcement 13 | . . 2 1 1 3 . . 1 1 . 4 Assault 2 | . . . . . 1 . . . 1 . . Garrison 1 | . . . . . 1 . . . . . . Intercept . | . . . . . . . . . . . . Construction Impeded 2 | . . . 1 . . . . . 1 . . Haulers Reinforced 2 | . . . . . . . . . . . 2 Stealth | -11 -10 -9 -9 -8 -7 -7 -7 -6 -5 -5 -5 --------- Run | Scr Mat Mat Min Mat Fac Low Low Fac Fac Was Fac Distress Signals 6 | . . 1 1 3 . . . 1 . . . Communications Jammed . | . . . . . . . . . . . . Distress Signals . | . . . . . . . . . . . . Times Spotted 244 | . 17 30 5 36 47 10 2 21 30 6 40 Peak Tracking Total 11 | . 5 5 4 5 5 4 2 4 7 6 11 Tactical Retreats 29 | . 1 . . 7 2 5 . 3 3 . 8 Traps | -11 -10 -9 -9 -8 -7 -7 -7 -6 -5 -5 -5 ------- Run | Scr Mat Mat Min Mat Fac Low Low Fac Fac Was Fac Traps Triggered 10 | . 1 . . 1 2 . . 3 1 . 2 Indirectly . | . . . . . . . . . . . . Trap Hack Attempts . | . . . . . . . . . . . . Triggered . | . . . . . . . . . . . . Disarmed . | . . . . . . . . . . . . Reprogrammed . | . . . . . . . . . . . . Reused . | . . . . . . . . . . . . Traps Extracted . | . . . . . . . . . . . . Installed . | . . . . . . . . . . . . Triggered 1 | . . . . . . 1 . . . . . Machines | -11 -10 -9 -9 -8 -7 -7 -7 -6 -5 -5 -5 ---------- Run | Scr Mat Mat Min Mat Fac Low Low Fac Fac Was Fac Machines Disabled 27 | . 6 1 1 . . . . . 14 . 5 Max in Single Turn 14 | . 2 1 1 . . . . . 14 . 5 Garrison Access 1 | . . . . . 1 . . . . . . Machines Sabotaged . | . . . . . . . . . . . . Garrisons Compromised . | . . . . . . . . . . . . Overloaded Fab Kills . | . . . . . . . . . . . . Fab Network Shutdowns 1 | . . . . . 1 . . . . . . Hacking | -11 -10 -9 -9 -8 -7 -7 -7 -6 -5 -5 -5 --------- Run | Scr Mat Mat Min Mat Fac Low Low Fac Fac Was Fac Machines Accessed 20 | . 3 2 . 3 6 1 . 4 . . 1 Terminals 15 | . 3 2 . 3 3 . . 3 . . 1 Fabricators 3 | . . . . . 2 . . 1 . . . Repair Stations . | . . . . . . . . . . . . Recycling Units . | . . . . . . . . . . . . Scanalyzers . | . . . . . . . . . . . . Garrison Access 1 | . . . . . 1 . . . . . . Total Hacks 47 | . 6 4 . 10 14 1 . 11 . . 1 Successful 27 | . 1 2 . 5 11 1 . 6 . . 1 Failed 20 | . 5 2 . 5 3 . . 5 . . . Catastrophic 3 | . . . . 1 1 . . 1 . . . Database Lockouts . | . . . . . . . . . . . . Manual 16 | . 5 1 . 4 5 . . . . . 1 Terminals 38 | . 6 4 . 10 8 . . 9 . . 1 Fabricators 7 | . . . . . 5 . . 2 . . . Repair Stations . | . . . . . . . . . . . . Recycling Units . | . . . . . . . . . . . . Scanalyzers . | . . . . . . . . . . . . Garrison Access 1 | . . . . . 1 . . . . . . Terminal Hacks 19 | . 1 2 . 5 6 1 . 4 . . . Record 1 | . . . . . . . . 1 . . . Part Schematic 2 | . . . . 1 1 . . . . . . Robot Analysis 2 | . 1 . . 1 . . . . . . . Prototype ID Bank 3 | . . 1 . 1 1 . . . . . . Open Door 1 | . . . . . . 1 . . . . . Branch Access Points 1 | . . . . . 1 . . . . . . Fabricator Index 1 | . . . . . 1 . . . . . . Alert Level 3 | . . . . . 1 . . 2 . . . Unreport Threat 2 | . . 1 . 1 . . . . . . . Hauler Manifests 2 | . . . . 1 . . . 1 . . . Registered Components 1 | . . . . . 1 . . . . . . Fabricator Hacks 6 | . . . . . 4 . . 2 . . . Load Schematic 2 | . . . . . 1 . . 1 . . . Build 4 | . . . . . 3 . . 1 . . . Repair Station Hacks . | . . . . . . . . . . . . Recycling Unit Hacks . | . . . . . . . . . . . . Scanalyzer . | . . . . . . . . . . . . Garrison Access Hacks 1 | . . . . . 1 . . . . . . Seal Access 1 | . . . . . 1 . . . . . . Unauthorized Hacks 1 | . . . . . . . . . . . 1 Terminals 1 | . . . . . . . . . . . 1 Assimilate 1 | . . . . . . . . . . . 1 Fabricators . | . . . . . . . . . . . . Repair Stations . | . . . . . . . . . . . . Recycling Units . | . . . . . . . . . . . . Scanalyzers . | . . . . . . . . . . . . Garrison Access . | . . . . . . . . . . . . Data Cores Recovered . | . . . . . . . . . . . . Used . | . . . . . . . . . . . . Hacking Detections 16 | . 3 2 . 3 4 . . 3 . . 1 Full Trace Events 2 | . 1 1 . . . . . . . . . Feedback Events . | . . . . . . . . . . . . Feedback Blocked . | . . . . . . . . . . . . Robot Schematics Acquired . | . . . . . . . . . . . . Robots Built 4 | . . . . . 4 . . . . . . Matter 372 | . . . . . 372 . . . . . . Time 198 | . . . . . 198 . . . . . . Total Robot Build Rating 8 | . . . . . 8 . . . . . . Part Schematics Acquired 2 | . . . . 1 1 . . . . . . Parts Built 2 | . . . . . 1 . . 1 . . . Matter 336 | . . . . . 168 . . 168 . . . Time 84 | . . . . . 42 . . 42 . . . Total Part Build Rating 8 | . . . . . 4 . . 4 . . . Parts Repaired . | . . . . . . . . . . . . Time . | . . . . . . . . . . . . Parts Recycled . | . . . . . . . . . . . . Recycled Matter . | . . . . . . . . . . . . Retrieved Matter . | . . . . . . . . . . . . Retrieved Components . | . . . . . . . . . . . . Parts Scanalyzed . | . . . . . . . . . . . . Part Schematics Acquired . | . . . . . . . . . . . . Parts Damaged . | . . . . . . . . . . . . Bothacking | -11 -10 -9 -9 -8 -7 -7 -7 -6 -5 -5 -5 ------------ Run | Scr Mat Mat Min Mat Fac Low Low Fac Fac Was Fac Used RIF Installer . | . . . . . . . . . . . . Robots Hacked . | . . . . . . . . . . . . Non-combat . | . . . . . . . . . . . . Combat . | . . . . . . . . . . . . Robot Hacks Applied . | . . . . . . . . . . . . Relay Couplers Released . | . . . . . . . . . . . . Robots Rewired . | . . . . . . . . . . . . Allies Hacked . | . . . . . . . . . . . . Hacks Repelled . | . . . . . . . . . . . . Allies | -11 -10 -9 -9 -8 -7 -7 -7 -6 -5 -5 -5 -------- Run | Scr Mat Mat Min Mat Fac Low Low Fac Fac Was Fac Total Allies 4 | . . . . . 4 . . . . . . Largest Group 4 | . . . . . 4 . . . . . . Highest-Rated Group 60 | . . . . . 60 . . . . . . Highest-Rated Ally 15 | . . . . . 15 . . . . . . Total Orders . | . . . . . . . . . . . . Ally Attacks 21 | . . . . . 21 . . . . . . Total Damage 501 | . . . . . 501 . . . . . . Kills 4 | . . . . . 4 . . . . . . Allies Corrupted . | . . . . . . . . . . . . Allies Melted . | . . . . . . . . . . . . Intel | -11 -10 -9 -9 -8 -7 -7 -7 -6 -5 -5 -5 ------- Run | Scr Mat Mat Min Mat Fac Low Low Fac Fac Was Fac Robot Analysis Total 2 | . 1 . . 1 . . . . . . . Derelict Logs Recovered 4 | . . . 1 . . 2 1 . . . . Drone Launches . | . . . . . . . . . . . . Drone Recoveries . | . . . . . . . . . . . . Exploration | -11 -10 -9 -9 -8 -7 -7 -7 -6 -5 -5 -5 ------------- Run | Scr Mat Mat Min Mat Fac Low Low Fac Fac Was Fac Turns Passed 11252 | 119 1240 926 559 1314 2133 1948 128 1273 769 106 737 Spaces Moved 5668 | 70 515 375 267 568 1001 944 50 642 458 78 700 Core 390 | 39 . . . . . . . 1 . . 350 Treads 3540 | . 70 375 267 568 1001 944 50 240 25 . . Legs 808 | 31 445 . . . . . . 87 37 78 130 Wheels 885 | . . . . . . . . 314 396 . 175 Hover . | . . . . . . . . . . . . Flight 45 | . . . . . . . . . . . 45 Fastest Speed 37 | 50 120 180 180 160 156 180 180 100 100 120 37 Average Speed 160 | 101 206 180 180 179 163 199 198 159 115 132 76 Slowest Speed 1550 | 150 220 220 180 180 220 240 220 1550 180 150 180 Overloaded Moves . | . . . . . . . . . . . . Propulsion Burnouts . | . . . . . . . . . . . . Robots Hopped 1 | . . . . . . . . . . . 1 Cave-ins Triggered . | . . . . . . . . . . . . Exploration Rate (%) 39 | 3 79 44 44 46 27 87 12 17 16 73 23 Regions Visited 11 Branch Regions 3 Pre-discovered Areas . | . . . . . . . . . . . . Known Exits Taken 3 | . . . . 1 1 . 1 . . . . Unknown Exits Taken 6 | 1 1 1 1 . . 1 . 1 . . . Scrap Searched 2 | . . . . . . 2 . . . . . Spaces Dug 12 | . 2 . . 2 4 2 . 1 1 . . Terrain Destroyed 382 | . 71 2 42 98 11 33 4 1 65 . 55 Melee 12 | . 2 . . 2 4 2 . 1 1 . . Projectile 2 | . . . . 2 . . . . . . . AOE 368 | . 69 2 42 94 7 31 4 . 64 . 55 Actions | -11 -10 -9 -9 -8 -7 -7 -7 -6 -5 -5 -5 --------- Run | Scr Mat Mat Min Mat Fac Low Low Fac Fac Was Fac Total 6945 | 93 612 521 304 719 1371 980 68 796 568 80 833 Wait 393 | . 8 47 6 22 209 1 9 24 27 1 39 Move 5656 | 69 514 374 266 567 1000 943 49 641 458 77 698 Hop 1 | . . . . . . . . . . . 1 Pick Up 97 | 6 20 14 2 9 22 . . 14 2 . 8 Fast Attach 89 | 6 2 5 . 11 19 4 . 19 4 1 18 Attach 50 | . 3 5 1 2 7 5 1 7 6 . 13 Detach 20 | . 2 1 . 1 4 3 . 5 2 1 1 Swap 40 | . 6 7 3 7 10 1 1 . 3 . 2 Drop 73 | . 5 14 2 13 22 1 . 10 2 . 4 Fire 243 | 12 46 52 23 76 22 3 2 . 6 . 1 Melee 248 | . 6 2 . 6 56 19 6 59 57 . 37 Ram 3 | . . . . . . . . . . . 3 Kick . | . . . . . . . . . . . . Crush 6 | . . . 1 5 . . . . . . . Escape Stasis 24 | . . . . . . . . 16 . . 8 Rewire 2 | . . . . . . . . 1 1 . . Trap . | . . . . . . . . . . . . Miscellaneous . | . . . . . . . . . . . . Route ------- -11/Scrapyard -10/Materials (discovered 3 exits: *Mat x2 / [*Min]) -9/Materials (discovered 3 exits: [*Min x2] / [*Sto]) -9/Mines (discovered 2 exits: *Mat / [*Exi]) -8/Materials (discovered 2 exits: *Fac x2) -7/Factory (discovered 4 exits: *Fac x2 / *Low x2) -7/Lower Caves -7/Lower Caves -6/Factory (discovered 2 exits: [*Fac] / Ext) -5/Factory -5/Waste -5/Factory (discovered 1 exit: [*Upp]) History --------- Turn | Location | Event 6 | -11/Scrapyard | Discovered new exit (range 14) 120 | -11/Scrapyard | Entered Materials 513 | -10/Materials | Build established: Hauler-Mutant 664 | -10/Materials | Discovered new exit (range 12) 714 | -10/Materials | Discovered new exit (range 7) 992 | -10/Materials | Discovered new exit (range 10) 1360 | -10/Materials | Entered another Materials area 1360 | -9/Materials | Evolved 2 slots: Propulsion x1, Utility x1 1934 | -9/Materials | Discovered new exit (range 15) 2038 | -9/Materials | Discovered new exit (range 13) 2108 | -9/Materials | Discovered new exit (range 5) 2286 | -9/Materials | Entered Mines 2293 | -9/Mines | Received a Rocket Launcher from a helpful Derelict 2310 | -9/Mines | Learned Materials security intel 2313 | -9/Mines | Discovered new exit (range 9) 2369 | -9/Mines | Deemed a non-threat by the Exiles lab entrance 2369 | -9/Mines | Discovered new exit (range 5) 2845 | -9/Mines | Entered Materials 2845 | -8/Materials | Evolved 2 slots: Propulsion x1, Utility x1 3216 | -8/Materials | Discovered new exit (range 9) 3267 | -8/Materials | Identified exit to Factory 3623 | -8/Materials | Build established: Scavenger-Mutant 4040 | -8/Materials | Discovered exit to Factory (range 10) 4159 | -8/Materials | Entered Factory 4159 | -7/Factory | Evolved 2 slots: Propulsion x1, Utility x1 4269 | -7/Factory | Garrison activated, responded to threat 4503 | -7/Factory | Build established: Hacker-Mutant 4808 | -7/Factory | Fabricated Y-45 Defender (x2) 4907 | -7/Factory | Fabricated Y-45 Defender (x2) 5013 | -7/Factory | Discovered new exit (range 4) 5027 | -7/Factory | Identified exit to Factory 5111 | -7/Factory | Discovered new exit (range 15) 5388 | -7/Factory | Identified exit to Lower Caves 5472 | -7/Factory | Discovered exit to Factory (range 7) 5840 | -7/Factory | Lost 8 parts (1p7n) 6021 | -7/Factory | Fabricated Imp. Melee Analysis Suite (x1) 6056 | -7/Factory | Local fabrication network quarantined 6159 | -7/Factory | First assault squad dispatched 6292 | -7/Factory | Entered Lower Caves 6327 | -7/Lower Caves | Build established: Scavenger-Mutant 6440 | -7/Lower Caves | Learned Factory stockpile data 6707 | -7/Lower Caves | Learned location of 1 exit from Proximity Caves 6996 | -7/Lower Caves | Attracted the attention of an 0b10 checkpoint 7060 | -7/Lower Caves | Lost 6 parts (1p4n1u) 7321 | -7/Lower Caves | Build established: Hauler-Mutant 8209 | -7/Lower Caves | Discovered new exit (range 13) 8240 | -7/Lower Caves | Entered another Lower Caves area 8242 | -7/Lower Caves | Attracted the attention of an 0b10 checkpoint 8285 | -7/Lower Caves | Core integrity fell below 50% 8296 | -7/Lower Caves | Learned location of 1 exit from Factory 8299 | -7/Lower Caves | Lost 4 parts (1p2n1u) 8350 | -7/Lower Caves | Discovered exit to Factory (range 10) 8368 | -7/Lower Caves | Entered Factory 8368 | -6/Factory | Evolved 2 slots: Utility x2 8369 | -6/Factory | Identified exit to Extension 8984 | -6/Factory | Lost 5 parts (4n1u) 9184 | -6/Factory | Lost 6 parts (3n3u) 9270 | -6/Factory | Lost 3 parts (1n1u1w) 9327 | -6/Factory | Found Hvy. Reflective Plating 9330 | -6/Factory | Found Hvy. Reflective Plating 9520 | -6/Factory | Build established: Scavenger-Mutant 9551 | -6/Factory | Discovered new exit (range 16) 9581 | -6/Factory | Fabricated Imp. Melee Analysis Suite (x1) 9641 | -6/Factory | Entered another Factory area 9641 | -5/Factory | Evolved 2 slots: Utility x1, Weapon x1 10241 | -5/Factory | First assault squad dispatched 10254 | -5/Factory | System corruption reached 10% 10410 | -5/Factory | Sucked down chute 10410 | -5/Factory | Entered Waste 10425 | -5/Waste | EMP discharged 10440 | -5/Waste | Spotted C-40 Crusher 10440 | -5/Waste | Spotted C-40 Crusher 10447 | -5/Waste | Spotted C-40 Crusher 10459 | -5/Waste | Spotted C-40 Crusher 10461 | -5/Waste | Crushed by Compactor (1 part destroyed, 1 dropped) 10469 | -5/Waste | Spotted C-40 Crusher 10491 | -5/Waste | Spotted C-40 Crusher 10501 | -5/Waste | Crushed by Compactor (1 part destroyed, 2 dropped) 10501 | -5/Waste | Discovered new exit (range 13) 10516 | -5/Waste | Entered Factory 10613 | -5/Factory | Spotted B-75 Beast 10760 | -5/Factory | Lost 3 parts (1n2u) 10918 | -5/Factory | Lost 3 parts (1p2n) 11099 | -5/Factory | Lost 11 parts (1p5n2u3w) 11118 | -5/Factory | Core integrity fell below 50% 11133 | -5/Factory | Discovered new exit (range 9) 11245 | -5/Factory | Core integrity fell below 20% 11253 | -5/Factory | Destroyed by P-70 Sage with Tesla Rifle Last Messages --------------- 11202_ U-05 Engineer lays Concrete. 11203_ K-01 Serf collects debris. 11203_ U-05 Engineer lays Concrete. 11204_ Slammed into A-15 Conveyor. 11206_ U-05 Engineer lays Concrete. 11225_ System corrupted: Matter fused (-7). 11231_ Med. Treads destroyed. 11232_ U-05 Engineer lays Concrete. 11239_ Slug penetrates A-15 Conveyor. 11239_ Field Propulsion Drive destroyed. 11240_ M 11250_ Penetrated by Slug. 11251_ Slug penetrates Wall. 11252_ A-15 Conveyor destroyed. 11252_ Penetrated by Slug. 11252_ G-50 Soldier suffers critical hit. 11253_ K-01 Serf collects debris. Map ----- +----------------------------------------------------+ | ?????????????????? ? ?#??#### ##? ? ??? #??? | | ????????#######+############# #? ?? ????? | | ???????? ###+####?#??#? | | ??????? ####### | | ??????? | | ?????? | | ?????? [ | | ?????? [!* ####### | | ?????? ^ ! ####%####????? | | ?????????######+################+#######=#???????? | | ????????????????????????# *%+%#???????? | | ????????????????????? ??# """ """" #+######### | | ????????????????????" ?# """ ""T"" #!| # | | ????????????????????" ?# """ #=^ # | | ????????????????????? # # ^ * # | | ????????????????????? # *%= # # | | ????????????????????? ######"" "######### | | ?????????????????????? ???# !| ##??????? | | ?????????????????????? ???# ##?????? | | ????????????###########k#### #?????? | | ???????????? # #####??? | | ??????????? # ??? | | ??????????? kY # ###???? | | ?????????? + ##????? | | ?????????? *! # #????? | | ?????????? =%!@ # #????? | | ?????????? k ! g# #????? | | ?????????????####### # #????? | | ???????????????????# g # ##????? | | ???????????????????#^ h gg############## ##?????? | | ??????????? # # # #?????? | | ??????????????""" ; ; """ """ ####?????? | | ??????????????""" # # """ ""F"" #????????? | | ??????????????""" # # """ "" "" #????????? | | ??????????????? ?# # #????????? | | ?????????????? ??# # """ """ #????????? | | ????????????? ???# # """ """ #????????? | | ???????????????????# # """ """ #????????? | | ???????????????????# pg # ? #????????? | | ???????????????????# g # ?? #????????? | | ???????????????????# " ??????????????? | | ???????????????????# " ??????????????? | | ???????????????????# ##############????????? | | ???????????????????# #?? #????????? | | ?????############### #??"" #????????? | | ????? # #?""S #????????? | | ???? # #?"" #????????? | | ???? # # ?????????? | | ???# # # ??????????? | | ???# + + """""???????????????? | +----------------------------------------------------+ Best States ------------- Heat Dissipation 40 Energy Generation 25 Energy Capacity 500 Matter Stores 300 Matter Capacity 300 Sight Range 22 Terrain Scan Range 20 Terrain Scan Density 210 Armor Coverage 600 Resistance: TH 25 Core Shielding 30 Utility Shielding 66 Evasion (%) 62 Melee Accuracy 18 Target Analysis 6 Recoil Reduction 5 Offensive Hacking 30 Item Schematics ----------------- Axe | -8/Materials | Hacked Imp. Melee Analysis Suite | -7/Factory | Hacked Robot Schematics ------------------ None Fabricated ------------ Y-45 Defender | x2 | -7/Factory | Preloaded Y-45 Defender | x2 | -7/Factory | Preloaded Imp. Melee Analysis Suite | x1 | -7/Factory Imp. Melee Analysis Suite | x1 | -6/Factory Alien Tech Used ----------------- None Achievements -------------- It Was An Accident, I Swear Challenges ------------ None Game ------ Seed SkeletonTractorDrive Manual? 0 Play Time 01:47:30 Cumulative 49.7 hours Start 2020.05.19 @ 13:20:09 End 2020.05.19 @ 20:46:05 Sessions 9 Manual Loads 0 Difficulty Rogue Special Mode None Game No. 64 Rogue 62 Adventurer 0 Explorer 2 Win Type - Total 1 Types 1/0/0/0/0/0/0 Lore% 36 Gallery% 42 Achievement% 37 Wizard Run 0 Options --------- ASCII 0 Keyboard 1 Movement Numpad Keybinds 0 Fullscreen 2 Font 18/SmallcapsGlow Map View 76x50 Tactical HUD 1 Map Filters NONE Filters NONE Steam 1 RUN: e2613da6-8fe3-42e4-932c-5b7a008ae583